fUST/lending_fUST_20250518
["ID","MTS","AMOUNT","RATE_DAILY","PERIOD"]
[361426097,1747563050753,-450.0,0.00016027,2]
[361426099,1747563050762,-483.2,0.00016027,2]
[361426101,1747563050771,-1437.11,0.00016027,2]
[361426103,1747563050781,-1099.66,0.00016027,2]
[361426105,1747563050790,-481.83,0.00016027,2]
[361426107,1747563050800,-450.0,0.00016027,2]
[361426109,1747563050810,-312.12,0.00016027,2]
[361426111,1747563050821,-935.74,0.00016027,2]
[361426113,1747563050831,-618.84,0.00016027,2]
[361426115,1747563050840,-585.0,0.00016141,2]
[361426117,1747563050849,-546.0,0.00016143,2]
[361426119,1747563050859,-2237.0,0.00016143,2]
[361426121,1747563050868,-151.0,0.00016143,2]
[361426123,1747563050877,-151.0,0.00016143,2]
[361426125,1747563050887,-151.0,0.00016143,2]
[361426127,1747563050895,-151.0,0.00016143,2]
[361426129,1747563050905,-2000.0,0.00016144,2]
[361426131,1747563050914,-500.0,0.00016164,2]
[361426133,1747563050923,-500.0,0.00016164,2]
[361426134,1747563050932,-500.0,0.00016164,2]
[361426136,1747563050941,-500.0,0.00016164,2]
[361426138,1747563050951,-500.0,0.00016164,2]
[361426140,1747563050960,-500.0,0.00016164,2]
[361426142,1747563050969,-500.0,0.00016164,2]
[361426144,1747563050978,-500.0,0.00016164,2]
[361426146,1747563050987,-227.13622709,0.00016164,2]
[361426148,1747563050997,-500.0,0.00016164,2]
[361426150,1747563051006,-487.51251725,0.00016164,2]
[361426152,1747563051015,-177.25187585,0.00016164,2]
[361426155,1747563051024,-450.0,0.00016164,2]
[361426157,1747563051034,-483.2,0.00016164,2]
[361426159,1747563051043,-1437.11,0.00016164,2]
[361426161,1747563051053,-1099.66,0.00016164,2]
[361426163,1747563051062,-481.83,0.00016164,2]
[361426165,1747563051071,-450.0,0.00016164,2]
[361426167,1747563051085,-935.74,0.00016164,2]
[361426169,1747563051094,-618.84,0.00016164,2]
[361426171,1747563051105,-3759.5711344,0.00016176,2]
[361426172,1747563051114,-823.0,0.00016195,2]
[361426174,1747563051123,-450.0,0.00016301,2]
[361426176,1747563051132,-483.2,0.00016301,2]
[361426178,1747563051141,-1437.11,0.00016301,2]
[361426180,1747563051150,-1099.66,0.00016301,2]
[361426182,1747563051160,-151.0,0.00016301,2]
[361426184,1747563051169,-151.0,0.00016301,2]
[361426186,1747563051178,-481.83,0.00016301,2]
[361426188,1747563051188,-399.1960359,0.00016301,2]
[361426191,1747563051198,-935.74,0.00016301,2]
[361426193,1747563051207,-151.0,0.00016301,2]
[361426195,1747563051216,-151.0,0.00016301,2]
[361426197,1747563051225,-151.0,0.00016301,2]
[361426199,1747563051235,-618.84,0.00016301,2]
[361426201,1747563051244,-4451.65972749,0.00016364,2]
[361426203,1747563051253,-450.0,0.00016438,2]
[361426205,1747563051262,-483.2,0.00016438,2]
[361426207,1747563051271,-1437.11,0.00016438,2]
[361426209,1747563051280,-1099.66,0.00016438,2]
[361426210,1747563051290,-481.83,0.00016438,2]
[361426212,1747563051300,-935.74,0.00016438,2]
[361426214,1747563051310,-618.84,0.00016438,2]
[361426216,1747563051319,-3759.5711344,0.00016555,2]
[361426218,1747563051328,-450.0,0.00016575,2]
[361426220,1747563051337,-483.2,0.00016575,2]
[361426222,1747563051346,-1437.11,0.00016575,2]
[361426224,1747563051356,-1099.66,0.00016575,2]
[361426226,1747563051365,-481.83,0.00016575,2]
[361426228,1747563051374,-935.74,0.00016575,2]
[361426230,1747563051383,-618.84,0.00016575,2]
[361426232,1747563051392,-250.0,0.000166,2]
[361426234,1747563051401,-250.0,0.000166,2]
[361426236,1747563051411,-250.7,0.000166,2]
[361426238,1747563051420,-1253.92630672,0.00016692,2]
[361426240,1747563051429,-576.22386934,0.00016712,2]
[361426243,1747563051440,-483.2,0.00016712,2]
[361426244,1747563051449,-1437.11,0.00016712,2]
[361426246,1747563051458,-1099.66,0.00016712,2]
[361426248,1747563051468,-481.83,0.00016712,2]
[361426250,1747563051478,-935.74,0.00016712,2]
[361426252,1747563051487,-618.84,0.00016712,2]
[361426254,1747563051496,-344.4739246,0.00016786,2]
[361426256,1747563051507,-483.42,0.00016849,2]
[361426258,1747563051516,-1437.17,0.00016849,2]
[361426260,1747563051526,-1099.79,0.00016849,2]
[361426262,1747563051535,-481.87,0.00016849,2]
[361426264,1747563051544,-935.93,0.00016849,2]
[361426266,1747563051553,-619.06031264,0.00016849,2]
[361426268,1747563051563,-3759.5711344,0.00016934,2]
[361426271,1747563051573,-3759.5711344,0.00017314,2]
[361426272,1747563051584,-243.277,0.00017314,2]
[361426274,1747563051593,-3759.5711344,0.00017693,2]
[361426276,1747563051603,-4451.65972749,0.00017746,2]
[361426278,1747563051613,-500.0,0.00017747,2]
[361426281,1747563051623,-1152.0,0.00017774,2]
[361426283,1747563051633,-4417.0,0.00017789,2]
[361426285,1747563051642,-207.4,0.00017789,2]
[361426287,1747563051652,-1074.159205,0.00018,2]
[361426289,1747563051661,-151.0,0.00018,2]
[361426291,1747563051670,-151.0,0.00018,2]
[361426296,1747563051711,-216.397418,0.00018,2]
[361426298,1747563051720,-151.0,0.00018,2]
[361426300,1747563051729,-151.0,0.00018,2]
[361426302,1747563051738,-151.0,0.00018,2]
[361426304,1747563051747,-151.0,0.00018072,2]
[361426306,1747563051756,-151.0,0.00018072,2]
[361426308,1747563051766,-151.0,0.00018072,2]
[361426310,1747563051776,-3759.5711344,0.00018072,2]
[361426312,1747563051785,-2328.971,0.0001837,2]
[361426314,1747563051795,-344.4739246,0.00018393,2]
[361426316,1747563051804,-3759.5711344,0.00018452,2]
[361426318,1747563051813,-1000.0,0.000185,2]
[361426320,1747563051822,-363.3878261,0.0001863,2]
[361426322,1747563051832,-363.3878261,0.0001863,2]
[361426324,1747563051841,-363.3878261,0.0001863,2]
[361426326,1747563051850,-3000.0,0.0001864,2]
[361426328,1747563051859,-151.0,0.000187,2]
[361426330,1747563051868,-568.95141787,0.0001877,2]
[361426332,1747563051878,-3759.5711344,0.00018831,2]
[361426334,1747563051887,-3502.02612428,0.000189,2]
[361426336,1747563051896,-404.0,0.00018952,2]
[361426338,1747563051905,-1000.0,0.00019,2]
[361426340,1747563051914,-160.731167,0.00019,5]
[361426342,1747563051924,-363.3878261,0.00019041,2]
[361426344,1747563051933,-363.3878261,0.00019041,2]
[361426346,1747563051942,-363.3878261,0.00019041,2]
[361426348,1747563051951,-688.554288,0.00019068,2]
[361426350,1747563051960,-4451.65972749,0.00019129,2]
[361426352,1747563051969,-215.0738,0.00019158,2]
[361426354,1747563051978,-500.0,0.00019177,2]
[361426356,1747563051987,-210.94,0.00019177,2]
[361426358,1747563051997,-151.0,0.00019178,2]
[361426360,1747563052006,-1500.0,0.00019178,2]
[361426362,1747563052015,-1500.0,0.00019178,3]
[361426364,1747563052025,-1507.07765561,0.00019178,4]
[361426366,1747563052035,-151.0,0.00019178,2]
[361426368,1747563052044,-151.0,0.00019178,2]
[361426370,1747563052053,-151.0,0.00019178,2]
[361426372,1747563052063,-151.0,0.00019178,2]
[361426374,1747563052072,-151.0,0.00019178,2]
[361426376,1747563052082,-151.0,0.00019178,2]
[361426378,1747563052091,-151.0,0.00019178,2]
[361426380,1747563052100,-1445.22,0.00019178,2]
[361426382,1747563052109,-1445.22,0.00019178,2]
[361426384,1747563052118,-1445.22,0.00019178,2]
[361426386,1747563052127,-1445.22,0.00019178,2]
[361426388,1747563052136,-1445.22,0.00019178,2]
[361426390,1747563052145,-1445.22,0.00019178,2]
[361426392,1747563052154,-1445.22,0.00019178,2]
[361426394,1747563052163,-1445.22,0.00019178,2]
[361426397,1747563052172,-1445.22,0.00019178,2]
[361426399,1747563052181,-1445.22,0.00019178,2]
[361426401,1747563052191,-1445.22,0.00019178,2]
[361426403,1747563052200,-1445.22,0.00019178,2]
[361426405,1747563052209,-1445.22,0.00019178,2]
[361426407,1747563052218,-1445.22,0.00019178,2]
[361426409,1747563052227,-1445.22,0.00019178,2]
[361426411,1747563052236,-1445.22,0.00019178,2]
[361426412,1747563052245,-1445.22,0.00019178,2]
[361426414,1747563052254,-1445.22,0.00019178,2]
[361426416,1747563052263,-1445.22,0.00019178,2]
[361426418,1747563052272,-1445.22,0.00019178,2]
[361426420,1747563052281,-1445.22,0.00019178,2]
[361426422,1747563052291,-1445.22,0.00019178,2]
[361426424,1747563052300,-1445.22,0.00019178,2]
[361426426,1747563052309,-1445.3674588,0.00019178,2]
[361426428,1747563052319,-2346.938749,0.00019178,2]
[361426430,1747563052328,-2346.938749,0.00019178,2]
[361426432,1747563052337,-151.0,0.00019178,2]
[361426433,1747563052346,-151.0,0.00019178,2]
[361426435,1747563052355,-151.0,0.00019178,2]
[361426437,1747563052365,-151.0,0.00019178,2]
[361426439,1747563052374,-151.0,0.00019178,2]
[361426440,1747563052383,-151.0,0.00019178,2]
[361426442,1747563052392,-151.0,0.00019178,2]
[361426444,1747563052401,-151.0,0.00019178,2]
[361426445,1747563052411,-155.0,0.00019178,2]
[361426447,1747563052420,-166.0,0.00019178,2]
[361426449,1747563052430,-965.711182,0.00019178,2]
[361426451,1747563052439,-233.10579957,0.00019178,3]
[361426452,1747563052448,-250.0,0.000192,2]
[361426454,1747563052457,-250.0,0.000192,2]
[361426456,1747563052466,-636.0,0.000192,2]
[361426458,1747563052475,-3759.5711344,0.0001921,2]
[361426459,1747563052485,-151.0,0.00019229,2]
[361426461,1747563052494,-24009.51698397,0.00019229,2]
[361426463,1747563052505,-156.933472,0.00019329,3]
[361426465,1747563052514,-151.0,0.00019329,2]
[361426466,1747563052523,-151.0,0.00019329,2]
[361426468,1747563052532,-151.0,0.00019329,2]
[361426470,1747563052542,-151.0,0.00019329,2]
[361426472,1747563052551,-151.0,0.00019329,2]
[361426473,1747563052562,-151.0,0.00019329,2]
[361426475,1747563052571,-155.017632,0.00019329,2]
[361426477,1747563052580,-151.0,0.00019329,2]
[361426479,1747563052590,-151.0,0.00019329,2]
[361426480,1747563052599,-151.0,0.00019329,2]
[361426482,1747563052609,-151.0,0.00019329,2]
[361426484,1747563052618,-151.0,0.00019329,2]
[361426486,1747563052627,-252.671746,0.00019329,2]
[361426487,1747563052636,-252.671746,0.00019329,2]
[361426489,1747563052645,-151.0,0.00019329,2]
[361426491,1747563052655,-153.216682,0.00019329,2]
[361426493,1747563052664,-153.216682,0.00019329,2]
[361426494,1747563052673,-151.0,0.00019329,2]
[361426496,1747563052682,-151.0,0.00019329,2]
[361426498,1747563052692,-199.679701,0.00019329,2]
[361426500,1747563052701,-151.0,0.00019329,2]
[361426501,1747563052710,-151.0,0.00019329,2]
[361426503,1747563052720,-151.0,0.00019329,2]
[361426505,1747563052729,-151.0,0.00019329,2]
[361426507,1747563052738,-151.0,0.00019329,2]
[361426509,1747563052747,-2346.938749,0.00019329,2]
[361426511,1747563052756,-151.0,0.00019329,2]
[361426512,1747563052765,-2346.938749,0.00019329,2]
[361426514,1747563052774,-151.0,0.00019329,2]
[361426516,1747563052784,-151.0,0.00019329,2]
[361426518,1747563052794,-236.34243,0.00019329,2]
[361426520,1747563052803,-151.0,0.00019329,2]
[361426521,1747563052813,-151.0,0.00019329,2]
[361426523,1747563052822,-151.0,0.00019329,2]
[361426525,1747563052833,-151.0,0.00019329,2]
[361426527,1747563052842,-151.0,0.00019329,2]
[361426529,1747563052851,-253.887166,0.00019329,2]
[361426530,1747563052861,-151.0,0.00019329,2]
[361426532,1747563052871,-151.0,0.00019329,2]
[361426534,1747563052880,-160.731167,0.00019329,3]
[361426536,1747563052890,-151.0,0.00019329,2]
[361426538,1747563052899,-151.0,0.00019329,2]
[361426540,1747563052909,-151.0,0.00019329,2]
[361426542,1747563052918,-100000.0,0.00019329,2]
[361426543,1747563052927,-151.0,0.000194,2]
[361426545,1747563052936,-151.0,0.000194,2]
[361426547,1747563052946,-151.0,0.000194,2]
[361426549,1747563052956,-1000.0,0.000195,2]
[361426551,1747563052965,-151.0,0.000195,2]
[361426553,1747563052975,-151.0,0.000195,2]
[361426555,1747563052984,-151.0,0.000195,2]
[361426557,1747563052994,-1613.0,0.00019507,2]
[361426558,1747563053003,-3759.5711344,0.0001959,2]
[361426560,1747563053013,-151.0,0.0001959,2]
[361426562,1747563053023,-151.0,0.0001959,2]
[361426564,1747563053033,-3000.0,0.00019736,2]
[361426566,1747563053042,-153.0,0.0001976,2]
[361426568,1747563053051,-153.0,0.0001976,2]
[361426570,1747563053061,-153.0,0.0001976,2]
[361426571,1747563053070,-153.0,0.0001976,2]
[361426573,1747563053080,-153.0,0.0001976,2]
[361426575,1747563053089,-153.0,0.0001976,2]
[361426577,1747563053099,-153.0,0.0001976,2]
[361426579,1747563053108,-153.0,0.0001976,2]
[361426581,1747563053117,-153.0,0.0001976,2]
[361426582,1747563053127,-153.0,0.0001976,2]
[361426584,1747563053136,-153.0,0.0001976,2]
[361426586,1747563053146,-153.0,0.0001976,2]
[361426588,1747563053155,-153.0,0.0001976,2]
[361426590,1747563053164,-153.0,0.0001976,2]
[361426592,1747563053173,-153.0,0.0001976,2]
[361426594,1747563053184,-153.0,0.0001976,2]
[361426595,1747563053193,-153.0,0.0001976,2]
[361426597,1747563053203,-153.0,0.0001976,2]
[361426599,1747563053212,-153.0,0.0001976,2]
[361426601,1747563053221,-153.0,0.0001976,2]
[361426603,1747563053231,-153.0,0.0001976,2]
[361426605,1747563053240,-153.0,0.0001976,2]
[361426607,1747563053249,-153.0,0.0001976,2]
[361426608,1747563053258,-153.0,0.0001976,2]
[361426610,1747563053268,-153.0,0.0001976,2]
[361426612,1747563053277,-153.0,0.0001976,2]
[361426614,1747563053286,-153.0,0.0001976,2]
[361426616,1747563053295,-153.0,0.0001976,2]
[361426618,1747563053304,-153.0,0.0001976,2]
[361426619,1747563053314,-153.0,0.0001976,2]
[361426621,1747563053323,-153.0,0.0001976,2]
[361426623,1747563053333,-153.0,0.0001976,2]
[361426625,1747563053342,-153.0,0.0001976,2]
[361426626,1747563053351,-153.0,0.0001976,2]
[361426628,1747563053361,-153.0,0.0001976,2]
[361426630,1747563053370,-153.0,0.0001976,2]
[361426632,1747563053379,-153.0,0.0001976,2]
[361426634,1747563053388,-153.0,0.0001976,2]
[361426635,1747563053398,-153.0,0.0001976,2]
[361426637,1747563053407,-153.0,0.0001976,2]
[361426639,1747563053417,-153.0,0.0001976,2]
[361426641,1747563053426,-153.0,0.0001976,2]
[361426643,1747563053435,-153.0,0.0001976,2]
[361426645,1747563053445,-153.0,0.0001976,2]
[361426646,1747563053454,-153.0,0.0001976,2]
[361426648,1747563053463,-153.0,0.0001976,2]
[361426650,1747563053473,-153.0,0.0001976,2]
[361426652,1747563053483,-153.0,0.0001976,2]
[361426654,1747563053492,-153.0,0.0001976,2]
[361426656,1747563053503,-153.0,0.0001976,2]
[361426658,1747563053512,-153.0,0.0001976,2]
[361426659,1747563053521,-153.0,0.0001976,2]
[361426661,1747563053530,-153.0,0.0001976,2]
[361426663,1747563053540,-153.0,0.0001976,2]
[361426665,1747563053550,-153.0,0.0001976,2]
[361426667,1747563053561,-153.0,0.0001976,2]
[361426669,1747563053571,-153.0,0.0001976,2]
[361426670,1747563053580,-153.0,0.0001976,2]
[361426672,1747563053590,-153.0,0.0001976,2]
[361426674,1747563053600,-153.0,0.0001976,2]
[361426676,1747563053611,-153.0,0.0001976,2]
[361426678,1747563053620,-153.0,0.0001976,2]
[361426680,1747563053630,-153.0,0.0001976,2]
[361426682,1747563053641,-153.0,0.0001976,2]
[361426683,1747563053650,-153.0,0.0001976,2]
[361426685,1747563053659,-153.0,0.0001976,2]
[361426687,1747563053669,-153.0,0.0001976,2]
[361426689,1747563053679,-153.0,0.0001976,2]
[361426691,1747563053688,-153.0,0.0001976,2]
[361426693,1747563053697,-153.0,0.0001976,2]
[361426695,1747563053707,-153.0,0.0001976,2]
[361426696,1747563053716,-153.0,0.0001976,2]
[361426698,1747563053727,-153.0,0.0001976,2]
[361426700,1747563053736,-153.0,0.0001976,2]
[361426702,1747563053746,-153.0,0.0001976,2]
[361426704,1747563053755,-153.0,0.0001976,2]
[361426706,1747563053765,-153.0,0.0001976,2]
[361426707,1747563053774,-153.0,0.0001976,2]
[361426709,1747563053783,-153.0,0.0001976,2]
[361426710,1747563053792,-153.0,0.0001976,2]
[361426712,1747563053802,-153.0,0.0001976,2]
[361426714,1747563053813,-153.0,0.0001976,2]
[361426715,1747563053823,-153.0,0.0001976,2]
[361426717,1747563053832,-153.0,0.0001976,2]
[361426719,1747563053842,-153.0,0.0001976,2]
[361426720,1747563053851,-153.0,0.0001976,2]
[361426722,1747563053860,-153.0,0.0001976,2]
[361426724,1747563053869,-153.0,0.0001976,2]
[361426726,1747563053879,-153.0,0.0001976,2]
[361426727,1747563053889,-153.0,0.0001976,2]
[361426729,1747563053898,-153.0,0.0001976,2]
[361426731,1747563053907,-153.0,0.0001976,2]
[361426732,1747563053916,-153.0,0.0001976,2]
[361426734,1747563053926,-153.0,0.0001976,2]
[361426736,1747563053936,-153.0,0.0001976,2]
[361426738,1747563053945,-153.0,0.0001976,2]
[361426739,1747563053954,-153.0,0.0001976,2]
[361426741,1747563053963,-153.0,0.0001976,2]
[361426743,1747563053973,-153.0,0.0001976,2]
[361426745,1747563053982,-153.0,0.0001976,2]
[361426746,1747563053992,-153.0,0.0001976,2]
[361426748,1747563054001,-153.0,0.0001976,2]
[361426750,1747563054010,-153.0,0.0001976,2]
[361426752,1747563054019,-153.0,0.0001976,2]
[361426754,1747563054029,-153.0,0.0001976,2]
[361426755,1747563054038,-153.0,0.0001976,2]
[361426757,1747563054048,-153.0,0.0001976,2]
[361426759,1747563054058,-153.0,0.0001976,2]
[361426761,1747563054067,-153.0,0.0001976,2]
[361426763,1747563054077,-153.0,0.0001976,2]
[361426764,1747563054086,-153.0,0.0001976,2]
[361426766,1747563054096,-153.0,0.0001976,2]
[361426768,1747563054106,-153.0,0.0001976,2]
[361426770,1747563054115,-153.0,0.0001976,2]
[361426772,1747563054124,-153.0,0.0001976,2]
[361426774,1747563054134,-153.0,0.0001976,2]
[361426775,1747563054143,-153.0,0.0001976,2]
[361426777,1747563054153,-153.0,0.0001976,2]
[361426779,1747563054162,-153.0,0.0001976,2]
[361426781,1747563054172,-153.0,0.0001976,2]
[361426783,1747563054181,-153.0,0.0001976,2]
[361426784,1747563054191,-153.0,0.0001976,2]
[361426786,1747563054200,-153.0,0.0001976,2]
[361426788,1747563054210,-153.0,0.0001976,2]
[361426790,1747563054220,-153.0,0.0001976,2]
[361426792,1747563054229,-153.0,0.0001976,2]
[361426794,1747563054239,-153.0,0.0001976,2]
[361426795,1747563054248,-153.0,0.0001976,2]
[361426797,1747563054258,-153.0,0.0001976,2]
[361426808,1747563054374,-153.0,0.0001976,2]
[361426810,1747563054383,-153.0,0.0001976,2]
[361426812,1747563054393,-153.0,0.0001976,2]
[361426814,1747563054402,-153.0,0.0001976,2]
[361426816,1747563054411,-153.0,0.0001976,2]
[361426817,1747563054420,-153.0,0.0001976,2]
[361426819,1747563054429,-153.0,0.0001976,2]
[361426821,1747563054439,-153.0,0.0001976,2]
[361426823,1747563054448,-153.0,0.0001976,2]
[361426825,1747563054457,-153.0,0.0001976,2]
[361426827,1747563054466,-153.0,0.0001976,2]
[361426829,1747563054475,-153.0,0.0001976,2]
[361426830,1747563054484,-153.0,0.0001976,2]
[361426832,1747563054494,-153.0,0.0001976,2]
[361426834,1747563054504,-153.0,0.0001976,2]
[361426836,1747563054513,-153.0,0.0001976,2]
[361426838,1747563054523,-153.0,0.0001976,2]
[361426840,1747563054533,-153.0,0.0001976,2]
[361426841,1747563054543,-153.0,0.0001976,2]
[361426843,1747563054552,-153.0,0.0001976,2]
[361426845,1747563054564,-153.0,0.0001976,2]
[361426847,1747563054573,-153.0,0.0001976,2]
[361426849,1747563054582,-153.0,0.0001976,2]
[361426851,1747563054591,-153.0,0.0001976,2]
[361426853,1747563054601,-153.0,0.0001976,2]
[361426854,1747563054610,-153.0,0.0001976,2]
[361426856,1747563054619,-153.0,0.0001976,2]
[361426858,1747563054629,-1289.59527,0.00019788,2]
[361426860,1747563054638,-306.1240614,0.00019863,2]
[361426862,1747563054647,-306.0,0.00019863,2]
[361426864,1747563054655,-569.6479192,0.00019863,2]
[361426866,1747563054665,-569.6479192,0.00019863,2]
[361426867,1747563054674,-569.0817136,0.00019863,2]
[361426869,1747563054684,-1761.92648406,0.00019888,2]
[361426871,1747563054693,-715.0,0.00019888,2]
[361426873,1747563054702,-715.0,0.00019888,2]
[361426875,1747563054711,-836.07236997,0.00019888,2]
[361426877,1747563054720,-500.0,0.00019888,2]
[361426879,1747563054729,-715.0,0.00019888,2]
[361426880,1747563054738,-715.0,0.00019888,2]
[361426882,1747563054747,-715.0,0.00019888,2]
[361426884,1747563054756,-715.0,0.00019888,2]
[361426886,1747563054766,-715.0,0.00019888,2]
[361426888,1747563054775,-715.0,0.00019888,2]
[361426890,1747563054784,-715.0,0.00019888,2]
[361426892,1747563054793,-683.0,0.00019888,2]
[361426894,1747563054802,-500.0,0.00019888,2]
[361426896,1747563054811,-715.0,0.00019888,2]
[361426897,1747563054821,-715.0,0.00019888,2]
[361426899,1747563054831,-715.0,0.00019888,2]
[361426901,1747563054839,-715.0,0.00019888,2]
[361426903,1747563054848,-715.0,0.00019888,2]
[361426905,1747563054857,-715.0,0.00019888,2]
[361426907,1747563054867,-715.0,0.00019888,2]
[361426908,1747563054876,-715.0,0.00019888,2]
[361426910,1747563054885,-715.0,0.00019888,2]
[361426912,1747563054894,-715.0,0.00019888,2]
[361426914,1747563054903,-321.0,0.00019888,2]
[361426916,1747563054912,-715.0,0.00019888,2]
[361426918,1747563054921,-321.0,0.00019888,2]
[361426920,1747563054930,-715.0,0.00019888,2]
[361426922,1747563054939,-321.0,0.00019888,2]
[361426923,1747563054948,-715.0,0.00019888,2]
[361426925,1747563054957,-321.0,0.00019888,2]
[361426927,1747563054967,-715.0,0.00019888,2]
[361426929,1747563054976,-321.0,0.00019888,2]
[361426931,1747563054985,-715.0,0.00019888,2]
[361426933,1747563054994,-715.0,0.00019888,2]
[361426935,1747563055003,-715.0,0.00019888,2]
[361426937,1747563055012,-715.0,0.00019888,2]
[361426939,1747563055021,-715.0,0.00019888,2]
[361426940,1747563055030,-715.0,0.00019888,2]
[361426942,1747563055039,-715.0,0.00019888,2]
[361426944,1747563055048,-715.0,0.00019888,2]
[361426946,1747563055058,-715.0,0.00019888,2]
[361426948,1747563055067,-715.0,0.00019888,2]
[361426950,1747563055075,-715.0,0.00019888,2]
[361426951,1747563055084,-715.0,0.00019888,2]
[361426953,1747563055093,-155.8851027,0.0001989,2]
[361426955,1747563055102,-2000.0,0.000199,2]
[361426957,1747563055111,-3759.5711344,0.00019969,2]
[361426959,1747563055120,-500.0,0.00019973,2]
[361426961,1747563055129,-398.02298952,0.00019973,2]
[361426963,1747563055138,-500.0,0.00019973,2]
[361426964,1747563055147,-500.0,0.00019973,2]
[361426966,1747563055156,-560.12242033,0.00019973,2]
[361426968,1747563055165,-500.0,0.00019973,2]
[361426970,1747563055174,-500.0,0.00019973,2]
[361426972,1747563055183,-500.0,0.00019973,2]
[361426974,1747563055192,-500.0,0.00019973,2]
[361426976,1747563055201,-500.0,0.00019973,2]
[361426977,1747563055211,-491.55011982,0.00019973,2]
[361426979,1747563055220,-500.0,0.00019973,2]
[361426981,1747563055229,-500.0,0.00019973,2]
[361426983,1747563055239,-500.0,0.00019973,2]
[361426985,1747563055248,-500.0,0.00019973,2]
[361426987,1747563055257,-500.0,0.00019973,2]
[361426989,1747563055269,-500.0,0.00019973,2]
[361426991,1747563055278,-600.0,0.00019973,2]
[361426993,1747563055287,-500.0,0.00019973,2]
[361426994,1747563055296,-501.98612391,0.00019973,2]
[361426996,1747563055306,-271.08538331,0.00019973,2]
[361426998,1747563055315,-500.0,0.00019973,2]
[361427000,1747563055325,-500.0,0.00019973,2]
[361427002,1747563055334,-500.0,0.00019973,2]
[361427004,1747563055343,-500.0,0.00019973,2]
[361427005,1747563055351,-500.0,0.00019973,2]
[361427007,1747563055361,-500.0,0.00019973,2]
[361427009,1747563055370,-500.0,0.00019973,2]
[361427011,1747563055379,-500.0,0.00019973,2]
[361427013,1747563055388,-500.0,0.00019973,2]
[361427015,1747563055397,-500.0,0.00019973,2]
[361427017,1747563055406,-500.61830476,0.00019973,2]
[361427018,1747563055415,-522.11746441,0.00019973,2]
[361427020,1747563055424,-500.0,0.00019973,2]
[361427022,1747563055433,-612.04196593,0.00019973,2]
[361427024,1747563055443,-500.0,0.00019973,2]
[361427026,1747563055452,-500.0,0.00019973,2]
[361427028,1747563055461,-500.0,0.00019973,2]
[361427030,1747563055470,-500.0,0.00019973,2]
[361427032,1747563055480,-166.15779189,0.00019973,2]
[361427033,1747563055490,-500.23233462,0.00019973,2]
[361427035,1747563055500,-500.0,0.00019973,2]
[361427037,1747563055510,-500.0,0.00019973,2]
[361427039,1747563055519,-239.00530699,0.00019973,2]
[361427041,1747563055529,-500.0,0.00019973,2]
[361427043,1747563055538,-500.75143193,0.00019973,2]
[361427045,1747563055547,-500.0,0.00019973,2]
[361427046,1747563055556,-500.0,0.00019973,2]
[361427048,1747563055565,-500.0,0.00019973,2]